[Event "Baku Open 2024"]
[Site "Baku"]
[Date "2024.06.29"]
[Round "1.1"]
[White "Suleimen, Ergali"]
[Black "Narayanan S L"]
[Result "1-0"]
[ECO "B42"]
[WhiteElo "2254"]
[BlackElo "2668"]
[Annotator "TA"]
[PlyCount "71"]
[EventDate "2024.06.29"]
[EventType "swiss"]
[EventCountry "AZE"]
[SourceTitle "playchess.com"]
[Source "ChessBase"]
[SourceQuality "1"]
[TimeControl "5400+30"]

{[%evp 16,71,37,22,19,12,29,38,42,0,82,77,84,81,74,59,81,78,83,102,154,151,168,153,153,182,182,167,168,147,143,159,145,85,183,164,170,155,162,119,116,105,467,473,801,466,701,833,795,801,889,870,1036,999,29977,29978,29986,1816]} 1. e4 {[%emt 0:00:30]} c5 {[%emt 0:00:05]} 2. Nf3 {[%emt 0:00:00]} e6 {[%emt 0:00:04]} 3. d4 {[%emt 0:00:01]} cxd4 {[%emt 0:00:05]} 4. Nxd4 {[%emt 0:00:05]} a6 {[%emt 0:00:06]} 5. Bd3 {[%emt 0:00:26]} Bc5 {[%emt 0:00:22]} 6. Nb3 {[%emt 0:00:16]} Ba7 {[%emt 0:00:07]} 7. Qe2 {[%emt 0:00:59]} Nc6 {[%emt 0:00:42]} 8. Be3 {[%emt 0:01:14]} Nge7 {[%emt 0:00:17]} 9. Nc3 {[%emt 0:04:37]} O-O {[%emt 0:01:29]} 10. O-O-O {[%emt 0:02:44][%cal Ba1d1,Bd1d3,Bd3d6][%mdl 32]} b5 {[%emt 0:01:01][%cal Bb7b5,Bb5b4][%mdl 32]} 11. Bxa7 {[%emt 0:09:34]} Rxa7 {[%emt 0:00:12] White is slightly better.} 12. h4 {[%emt 0:01:00]} Ng6 {[%emt 0:19:00]} (12... b4 $11 {remains equal.} 13. Na4 Qc7) 13. Qe3 $16 {[%emt 0:18:27]} Nge5 {[%emt 0:05:47]} 14. f4 {[%emt 0:09:05]} Nxd3+ {[%emt 0:01:26]} 15. Rxd3 {[%emt 0:00:55]} b4 {[%emt 0:08:25]} 16. Na4 {[%emt 0:01:33]} a5 {[%emt 0:00:25]} 17. Rd6 {[%emt 0:06:17] Black must now prevent Rxc6.} Qe7 {[%emt 0:10:54]} (17... Qc7 $142 18. Rhd1 f6) 18. Rhd1 {[%emt 0:01:58]} Rc7 {[%emt 0:06:09]} 19. g3 {[%emt 0:04:21]} e5 {[%emt 0:15:27]} 20. f5 {[%emt 0:04:59] White is much more active.} Nd4 {[%emt 0:12:53] [#]} 21. Nxd4 {[%emt 0:00:40]} Qxd6 {[%emt 0:00:05]} 22. Nb5 {[%emt 0:00:03][%csl LRc7,LRd6]} Qc6 {[%emt 0:01:19][%csl Gc7][%cal Rc6c2]} 23. Nxc7 {[%emt 0:00:06]} Qxc7 {[%emt 0:00:04] [#]} 24. f6 {[%emt 0:09:46]} Qc6 {[%emt 0:03:04]} (24... gxf6 $16 25. Nb6 Kg7) 25. fxg7 $18 {[%emt 0:00:08]} Re8 {[%emt 0:00:35]} 26. Nb6 $36 {[%emt 0:01:41][%cal Ba4b6,Bb6d5,Bd5e7,Be7f5][%mdl 2080] Black is under strong pressure.} Kxg7 {[%emt 0:00:53]} 27. Rf1 {[%emt 0:06:47][%cal Bd1f1,Bf1f2,Bf2d2,Bd2d6][%mdl 32] Hoping for Nd5.} Ba6 {[%emt 0:02:49]} 28. Rf2 {[%emt 0:01:45]} h6 $2 {[%emt 0:02:52][%mdl 8192] Black cannot hold the game after this.} (28... Bc4 $16) 29. Nd5 {[%emt 0:02:13] And now Rf6 would win.} Rh8 {[%emt 0:02:54]} (29... f5 $142 30. Rxf5 Rf8) 30. Qf3 {[%emt 0:09:51]} Qg6 {[%emt 0:00:05]} (30... Qe6 $142 31. Nc7 Qg6) 31. Ne7 {[%emt 0:00:09]} Qe6 {[%emt 0:00:22]} 32. Nf5+ {[%emt 0:00:04]} Kh7 {[%emt 0:00:24]} 33. Rd2 {[%emt 0:00:31]} Qb6 {[%emt 0:03:27]} 34. b3 {[%emt 0:03:04][%cal Od2d6] Intending Rd6! and mate.} Rc8 {[%emt 0:01:29]} 35. Rd6 {[%emt 0:00:46]} ({Not} 35. Rxd7 Rxc2+ 36. Kb1 Re2 $11) 35... Rc6 {[%emt 0:01:29] [#]} 36. Qg4 $1 {[%emt 0:00:33] Weighted Error Value: White=0.32/Black=0.61.  Loses game:     	---       	Black=1      Mistake:       	White=1     	Black=5      Inaccurate:     	White=2     	---        OK:         	White=7     	Black=11     Best:        	White=3     	---} 1-0

[Event "Baku Open 2024"]
[Site "Baku"]
[Date "2024.06.29"]
[Round "1.2"]
[White "Mamedov, Rauf"]
[Black "Avinash Ramesh"]
[Result "1-0"]
[ECO "A30"]
[WhiteElo "2651"]
[BlackElo "2252"]
[Annotator "TA"]
[PlyCount "83"]
[EventDate "2024.06.29"]
[EventType "swiss"]
[EventCountry "AZE"]
[SourceTitle "playchess.com"]
[Source "ChessBase"]
[SourceQuality "1"]
[TimeControl "5400+30"]

{[%evp 14,83,18,16,16,10,0,0,0,0,0,0,0,0,-3,0,16,5,15,10,20,29,20,10,60,11,113,53,96,0,97,0,64,72,58,68,129,153,156,152,150,104,123,123,116,126,123,40,760,739,1697,1127,2079,2003,29988,1903,29988,29980,29989,29990,29993,29994,29994,29995,29995,29996,29996,29997,29997,29998,29998,29999]} 1. Nf3 {[%emt 0:00:07]} Nf6 {[%emt 0:00:08]} 2. g3 {[%emt 0:00:14]} g6 {[%emt 0:00:05]} 3. b3 {[%emt 0:00:02]} b6 {[%emt 0:00:07]} 4. Bb2 {[%emt 0:00:05]} Bg7 {[%emt 0:00:04]} 5. Bg2 {[%emt 0:00:17]} Bb7 {[%emt 0:00:05]} 6. c4 {[%emt 0:00:15]} c5 {[%emt 0:00:29]} 7. O-O {[%emt 0:00:08]} O-O {[%emt 0:00:04]} 8. d4 {[%emt 0:00:17]} d5 {[%emt 0:00:05]} 9. dxc5 {[%emt 0:13:24]} dxc4 {[%emt 0:00:42]} 10. bxc4 {[%emt 0:07:41]} bxc5 {[%emt 0:07:18] The position is equal.} 11. Qc1 {[%emt 0:05:55]} Nbd7 {[%emt 0:05:18]} 12. Rd1 {[%emt 0:04:19]} Qc7 {[%emt 0:11:41]} 13. Nc3 {[%emt 0:03:04]} Rad8 {[%emt 0:04:29]} 14. Rb1 {[%emt 0:06:32]} Qc8 {[%emt 0:13:29]} 15. Bh3 {[%emt 0:27:00]} Bxf3 {[%emt 0:22:11]} (15... e6 {is more complex.} 16. Nb5 Nb6 17. Nd6 Qc7) 16. exf3 {[%emt 0:00:11]} e6 {[%emt 0:00:28]} 17. f4 {[%emt 0:02:45] Inhibits Ne5.} Nb6 {[%emt 0:05:58]} 18. Bf1 {[%emt 0:00:12]} h5 {[%emt 0:02:00]} (18... Rxd1 $1 $11 19. Nxd1 Rd8) 19. a4 {[%emt 0:07:01]} (19. Re1 $14) 19... Nbd7 {[%emt 0:04:48]} (19... Rxd1 $11 20. Qxd1 Rd8) 20. Bg2 {[%emt 0:02:18]} (20. Nb5 $16) 20... Nb6 {[%emt 0:01:00]} 21. Bf1 {[%emt 0:00:50]} Nbd7 {[%emt 0:00:06]} 22. Bg2 {[%emt 0:08:07]} Nb6 {[%emt 0:00:41]} 23. Rxd8 $1 {[%emt 0:00:11]} Rxd8 {[%emt 0:00:11]} 24. Nb5 {[%emt 0:00:06] Strongly threatening a5.} Qd7 {[%emt 0:07:56]} ({Better is} 24... Nxa4 $14 25. Be5 Qd7) 25. a5 $36 {[%emt 0:01:21][%mdl 2048] Keeping Black busy.} Nc8 {[%emt 0:00:05]} 26. Be5 {[%emt 0:01:37] This pair of bishops is nice.} Ne8 {[%emt 0:01:14] Prevents Bc7.} 27. a6 {[%emt 0:03:21] White is much more active.} (27. Qe3 $142) 27... Bxe5 {[%emt 0:05:31]} 28. fxe5 {[%emt 0:00:03]} Nc7 {[%emt 0:00:33] [#]} 29. Nc3 $1 {[%emt 0:01:32]} Nb6 {[%emt 0:00:33][%cal Od7d3] [#]} 30. Ne4 {[%emt 0:00:15]} (30. Qa3 $1 $16) 30... Ne8 $2 {[%emt 0:00:16][%mdl 8192] Loses the game.} (30... Qd4 $14) 31. Qh6 $18 {[%emt 0:00:45] Intending Nf6+ and mate.} ({Less strong is} 31. Nxc5 Qd4 $18) 31... Qd4 {[%emt 0:01:10]} 32. Ng5 {[%emt 0:00:06] White wants to mate with Qh7+.} Rd7 {[%emt 0:02:37]} 33. Bc6 {[%emt 0:00:04]} Qd3 {[%emt 0:00:18]} 34. Bxd7 {[%emt 0:02:44]} (34. Qh7+ $142 Kf8 35. Rxb6 axb6 36. a7 h4 37. a8=Q (37. a8=B Qd4 $18) 37... Qd1+ 38. Kg2 h3+ 39. Kxh3) 34... Qxb1+ {[%emt 0:00:06]} 35. Kg2 {[%emt 0:00:02] White mates.} Ng7 {[%emt 0:00:11] [#]} 36. Bxe6 $1 {[%emt 0:00:50][%mdl 512]} fxe6 {[%emt 0:01:08]} (36... Nd7 37. Bxf7+) 37. Qh7+ {[%emt 0:00:04]} Kf8 {[%emt 0:00:05]} 38. Qh8+ {[%emt 0:00:04]} Ke7 {[%emt 0:00:04]} 39. Qxg7+ {[%emt 0:00:04]} Kd8 {[%emt 0:00:06]} 40. Qf8+ {[%emt 0:00:37]} Kd7 {[%emt 0:00:41]} 41. Qf7+ {[%emt 0:00:13]} Kc8 {[%emt 0:00:16]} 42. Qe8+ {[%emt 0:00:05] Weighted Error Value: White=0.18 (very precise) /Black=0.46.  Loses game:     	---       	Black=1      Mistake:       	White=4     	Black=3      Inaccurate:     	White=1     	Black=2      OK:         	White=4     	Black=8      Best:        	White=3     	Black=3      Strong:       	White=2     	---} 1-0

[Event "Baku Open 2024"]
[Site "Baku"]
[Date "2024.06.29"]
[Round "1.3"]
[White "Nurgali, Nazerke"]
[Black "Pranav Vijay"]
[Result "1/2-1/2"]
[ECO "E18"]
[WhiteElo "2252"]
[BlackElo "2252"]
[Annotator "RC"]
[PlyCount "107"]
[EventDate "2024.06.29"]
[EventType "swiss"]
[EventCountry "AZE"]
[SourceTitle "playchess.com"]
[Source "ChessBase"]
[SourceQuality "1"]
[TimeControl "5400+30"]

1. d4 {[%emt 0:00:04]} Nf6 {[%emt 0:00:10]} 2. c4 {[%emt 0:00:20]} e6 {[%emt 0:00:08]} 3. Nf3 {[%emt 0:00:17]} b6 {[%emt 0:00:10]} 4. g3 {[%emt 0:00:48]} Bb7 {[%emt 0:00:19]} 5. Bg2 {[%emt 0:00:45]} Be7 {[%emt 0:00:13]} 6. Nc3 {[%emt 0:00:39]} O-O {[%emt 0:00:46]} 7. O-O {[%emt 0:03:52]} a5 {[%emt 0:02:14]} 8. Qc2 {[%emt 0:04:28]} Bb4 {[%emt 0:09:15]} 9. Rd1 {[%emt 0:02:53]} h6 {[%emt 0:03:08]} 10. Bd2 {[%emt 0:06:43]} d6 {[%emt 0:05:29]} 11. Nh4 {[%emt 0:06:59]} Bxg2 {[%emt 0:08:53]} 12. Nxg2 {[%emt 0:02:05]} Nc6 {[%emt 0:10:53]} 13. Nb5 {[%emt 0:09:23]} Bxd2 {[%emt 0:00:55]} 14. Qxd2 {[%emt 0:00:58]} e5 {[%emt 0:03:57]} 15. dxe5 {[%emt 0:06:24]} Nxe5 {[%emt 0:00:21]} 16. Qc2 {[%emt 0:00:46]} Qd7 {[%emt 0:06:39]} 17. Nd4 {[%emt 0:03:54]} Rfe8 {[%emt 0:04:12]} 18. Nf4 {[%emt 0:04:43]} a4 {[%emt 0:08:05]} 19. b4 {[%emt 0:08:10]} Nc6 {[%emt 0:11:39]} 20. a3 {[%emt 0:06:19]} Re4 {[%emt 0:03:43]} 21. Nxc6 {[%emt 0:06:20]} Qxc6 {[%emt 0:00:07]} 22. Rac1 {[%emt 0:00:12]} Rae8 {[%emt 0:03:20]} 23. e3 {[%emt 0:03:21]} Nh7 {[%emt 0:03:13]} 24. Nd5 {[%emt 0:01:42]} Ng5 {[%emt 0:01:43]} 25. h4 {[%emt 0:03:28]} Nh7 {[%emt 0:00:01]} 26. Qc3 {[%emt 0:03:45]} Nf8 {[%emt 0:03:30]} 27. Rd4 {[%emt 0:01:51]} R4e5 {[%emt 0:02:29]} 28. Rg4 {[%emt 0:02:48]} Ng6 {[%emt 0:00:18]} 29. Qc2 {[%emt 0:03:35]} Qd7 {[%emt 0:02:50]} 30. Qd1 {[%emt 0:01:26]} h5 {[%emt 0:03:13]} 31. Rd4 {[%emt 0:00:26]} Nf8 {[%emt 0:01:14]} 32. Nf4 {[%emt 0:00:39]} Qf5 {[%emt 0:02:25]} 33. Qc2 {[%emt 0:00:48]} Qxc2 {[%emt 0:00:50]} 34. Rxc2 {[%emt 0:00:04]} Ne6 {[%emt 0:00:21]} 35. Rd5 {[%emt 0:02:34]} g6 {[%emt 0:00:43]} 36. Rxe5 {[%emt 0:01:31]} dxe5 {[%emt 0:00:01]} 37. Nxe6 {[%emt 0:00:05]} Rxe6 {[%emt 0:00:04]} 38. Kf1 {[%emt 0:00:30]} Kf8 {[%emt 0:00:31]} 39. Ke2 {[%emt 0:00:15]} Ke7 {[%emt 0:00:08]} 40. c5 {[%emt 0:01:19]} Rc6 {[%emt 0:01:14]} 41. Kd3 {[%emt 0:00:17]} b5 {[%emt 0:00:09]} 42. Rd2 {[%emt 0:01:29]} Re6 {[%emt 0:00:56]} 43. e4 {[%emt 0:00:42]} f5 {[%emt 0:00:35]} 44. Ke3 {[%emt 0:00:21]} c6 {[%emt 0:00:14]} 45. Rd1 {[%emt 0:00:47]} Rf6 {[%emt 0:00:08]} 46. exf5 {[%emt 0:00:11]} gxf5 {[%emt 0:00:06]} 47. Rd2 {[%emt 0:00:22]} Rg6 {[%emt 0:00:47]} 48. Kf3 {[%emt 0:00:51]} Re6 {[%emt 0:00:35]} 49. Ke3 {[%emt 0:00:12]} Rf6 {[%emt 0:00:01]} 50. Kf3 {[%emt 0:00:16]} Ke8 {[%emt 0:00:55]} 51. Ke3 {[%emt 0:00:20]} Ke7 {[%emt 0:00:24]} 52. Kf3 {[%emt 0:00:07]} Rf8 {[%emt 0:00:12]} 53. Rd6 {[%emt 0:01:11]} Rf6 {[%emt 0:00:30]} 54. Rd2 {[%emt 0:00:04]} 1/2-1/2

[Event "Baku Open 2024"]
[Site "Baku"]
[Date "2024.06.29"]
[Round "1.4"]
[White "Puranik, Abhimanyu"]
[Black "Bayramov, Zaur"]
[Result "1-0"]
[ECO "C41"]
[WhiteElo "2632"]
[BlackElo "2249"]
[Annotator "TA"]
[PlyCount "51"]
[EventDate "2024.06.29"]
[EventType "swiss"]
[EventCountry "AZE"]
[SourceTitle "playchess.com"]
[Source "ChessBase"]
[SourceQuality "1"]
[TimeControl "5400+30"]

{[%evp 18,51,53,44,66,40,36,14,63,27,37,40,39,31,62,26,25,0,73,89,285,210,203,222,222,218,587,581,559,566,29986,29987,29987,29988,6538,1028]} 1. e4 {[%emt 0:00:10]} d6 {[%emt 0:01:29]} 2. d4 {[%emt 0:02:09]} Nf6 {[%emt 0:00:07]} 3. Nc3 {[%emt 0:00:05]} e5 {[%emt 0:00:15]} 4. Nf3 {[%emt 0:00:23]} Nbd7 {[%emt 0:00:35]} 5. Bc4 {[%emt 0:00:32]} Be7 {[%emt 0:01:52]} 6. O-O {[%emt 0:00:06]} O-O {[%emt 0:00:19]} 7. a4 {[%emt 0:00:17]} a5 {[%emt 0:03:27]} 8. Re1 {[%emt 0:01:35]} c6 {[%emt 0:00:56]} 9. h3 {[%emt 0:01:44]} Qc7 {[%emt 0:01:28]} 10. Ba2 {[%emt 0:06:21]} Nb8 {[%emt 0:06:17]} 11. Re3 {[%emt 0:08:32]} Na6 {[%emt 0:02:29]} 12. Ne2 {[%emt 0:01:00]} Nb4 {[%emt 0:08:21]} (12... d5 $11) 13. Bb3 {[%emt 0:01:47]} exd4 {[%emt 0:24:00]} 14. Nfxd4 {[%emt 0:00:38]} Na6 {[%emt 0:00:59][%cal Bb4a6,Ba6c5,Bc5e6,Be6d4][%mdl 32]} 15. Ng3 {[%emt 0:07:53]} g6 {[%emt 0:07:36]} 16. Re1 {[%emt 0:02:28]} Nc5 {[%emt 0:00:49]} 17. Bc4 {[%emt 0:01:42]} Kg7 {[%emt 0:10:34]} (17... Be6 $11 {keeps the balance.} 18. Bxe6 fxe6) 18. Bf4 $16 {[%emt 0:01:11] White has more active pieces.} Rd8 $2 {[%emt 0:12:30] [#] This costs Black the game.} (18... Ne8 $16 {was necessary.}) 19. Qf3 {[%emt 0:03:33] Strongly threatening e5.} Ne6 {[%emt 0:03:26]} 20. e5 {[%emt 0:19:56][%cal Be4e5,Be5f6][%mdl 32]} Nxd4 {[%emt 0:06:24]} 21. exf6+ {[%emt 0:00:19]} Kg8 $2 {[%emt 0:01:14]} (21... Bxf6 $2 {too greedy.} 22. Bh6+ Kxh6 23. Qxf6 $18) (21... Kh8 {is tougher.} 22. Qd1 Bxf6) 22. Rxe7 $18 {[%emt 0:01:06]} Nxf3+ {[%emt 0:00:05]} 23. gxf3 {[%emt 0:00:04]} Bd7 {[%emt 0:01:23]} 24. Bxf7+ {[%emt 0:00:24] This pair of bishops is nice.} Kh8 {[%emt 0:00:01]} 25. Bh6 {[%emt 0:00:07][%csl Gf6][%cal Rh6g7]} Rg8 {[%emt 0:00:13]} 26. Be6 {[%emt 0:01:03] Weighted Error Value: White=0.13 (very precise) /Black=0.92.  Loses game:     	---       	Black=1      Mistake:       	---       	Black=3      Inaccurate:     	White=3     	Black=2      OK:         	White=1     	Black=8      Best:        	White=3     	---} (26. Bxg8 $142 Kxg8 27. f7+ Kh8 28. Rae1 (28. f8=R+ Rxf8 29. Bxf8 Qd8 $18) (28. f8=N Qd8 $18)) 1-0

[Event "Baku Open 2024"]
[Site "Baku"]
[Date "2024.06.29"]
[Round "1.5"]
[White "Davudov, Tunar"]
[Black "Suleymanli, Aydin"]
[Result "0-1"]
[ECO "E05"]
[WhiteElo "2249"]
[BlackElo "2626"]
[Annotator "TA"]
[PlyCount "92"]
[EventDate "2024.06.29"]
[EventType "swiss"]
[EventCountry "AZE"]
[SourceTitle "playchess.com"]
[Source "ChessBase"]
[SourceQuality "1"]
[TimeControl "5400+30"]

{[%evp 16,92,31,30,23,28,27,15,35,50,38,28,39,36,26,26,19,22,35,4,33,20,42,35,45,17,25,8,18,19,29,12,18,16,20,0,1,-17,-23,-23,-13,-14,-4,-50,-37,-82,-91,-95,-55,-135,-147,-172,-184,-175,-162,-196,-192,-206,-227,-244,-234,-240,-185,-177,-185,-162,-180,-167,-176,-162,-163,-716,-342,-484,-480,-663,-566,-5706,-5690]} 1. d4 {[%emt 0:00:05]} Nf6 {[%emt 0:00:08]} 2. c4 {[%emt 0:00:15]} e6 {[%emt 0:00:27]} 3. Nf3 {[%emt 0:00:10]} d5 {[%emt 0:00:29]} 4. g3 {[%emt 0:00:09]} Be7 {[%emt 0:00:06]} 5. Bg2 {[%emt 0:00:09]} O-O {[%emt 0:00:07]} 6. O-O {[%emt 0:00:09]} dxc4 {[%emt 0:00:38]} 7. Qc2 {[%emt 0:00:06]} a6 {[%emt 0:00:08]} 8. a4 {[%emt 0:00:07]} Nc6 {[%emt 0:02:52]} 9. Qxc4 {[%emt 0:03:27]} Na5 {[%emt 0:00:09]} 10. Qc2 {[%emt 0:00:29]} b6 {[%emt 0:00:08]} 11. Ne5 {[%emt 0:00:17]} Nd5 {[%emt 0:01:37] The position is equal.} 12. Bd2 {[%emt 0:12:37]} Bb7 $1 {[%emt 0:02:15]} 13. Bxa5 {[%emt 0:13:47]} bxa5 {[%emt 0:00:05]} 14. Nc6 {[%emt 0:01:54] Against Nb4} Bxc6 {[%emt 0:07:27]} 15. Qxc6 {[%emt 0:00:10]} Rb8 {[%emt 0:00:12]} 16. Nc3 {[%emt 0:04:39]} Nb4 {[%emt 0:03:35]} 17. Qe4 {[%emt 0:01:29] Black is weak on the light squares} c6 {[%emt 0:04:08]} 18. Rfd1 {[%emt 0:13:06]} Qb6 {[%emt 0:00:55]} 19. Rd2 {[%emt 0:05:49]} Rfc8 {[%emt 0:07:39]} 20. Qg4 {[%emt 0:10:07]} Nd5 {[%emt 0:08:33]} 21. e4 {[%emt 0:05:18]} Nf6 {[%emt 0:00:15]} 22. Qe2 {[%emt 0:02:39]} Bb4 {[%emt 0:02:45]} 23. Qc4 {[%emt 0:03:52]} Nd7 {[%emt 0:07:28]} 24. e5 {[%emt 0:06:46]} Qa7 {[%emt 0:03:23]} 25. Be4 {[%emt 0:03:49][%cal Oh2h4]} (25. Bxc6 $2 Nb6 26. Qe2 Bxc3 (26... Rxc6 $2 27. d5 $19) 27. bxc3 Rxc6 $19) 25... g6 {[%emt 0:47:31]} 26. h4 {[%emt 0:02:34]} c5 {[%emt 0:00:00]} 27. d5 {[%emt 0:01:22]} Nxe5 {[%emt 0:00:00]} 28. Qe2 {[%emt 0:00:07]} Re8 {[%emt 0:00:00]} 29. d6 {[%emt 0:02:41]} (29. dxe6 $11 {might be stronger.} Rxe6 30. Bd5) 29... c4 $36 {[%emt 0:00:00][%mdl 2048] Black has some pressure.} 30. Kg2 {[%emt 0:00:55]} Red8 {[%emt 0:00:00]} 31. Rad1 {[%emt 0:01:00]} Rb6 {[%emt 0:00:00]} 32. d7 {[%emt 0:02:49]} Qc7 $17 {[%emt 0:00:00][%cal Rd8d7]} (32... Nxd7 33. Qe3 Bc5 34. Qg5 $16 (34. Rxd7 Rxd7 35. Rxd7 Qxd7 $11)) 33. Qe3 {[%emt 0:02:56]} Rd6 {[%emt 0:00:00]} (33... Nxd7 $2 34. Rxd7 Rxd7 35. Rxd7 Qxd7 36. Qxb6 $18) 34. Rxd6 {[%emt 0:01:09]} Bxd6 {[%emt 0:00:00]} 35. h5 {[%emt 0:00:27]} Rxd7 {[%emt 0:00:00]} (35... gxh5 $2 {is the wrong capture.} 36. Qg5+ Ng6 37. Rxd6 (37. Qxh5 Rxd7 38. Qe2 Rd8 $17) 37... Rxd7 38. Rxa6 $18) (35... Nxd7 36. hxg6 hxg6 37. Bxg6 $11) 36. hxg6 {[%emt 0:00:32]} hxg6 {[%emt 0:00:00]} 37. f4 {[%emt 0:00:29]} Bc5 {[%emt 0:00:00]} 38. Qe2 {[%emt 0:00:27]} Rxd1 {[%emt 0:00:00]} 39. Nxd1 {[%emt 0:00:04] [#]} Nd3 {[%emt 0:00:00] And now ...Qd7 would win.} 40. b3 {[%emt 0:01:01]} Qd7 {[%emt 0:00:00] Hoping for ...f5.} 41. bxc4 {[%emt 0:00:12]} Nb4 {[%emt 0:00:00]} 42. Nb2 {[%emt 0:00:49]} Qd4 {[%emt 0:00:00]} 43. Kf3 $2 {[%emt 0:00:29] [#]} (43. Nd1) 43... Na2 {[%emt 0:00:00]} (43... f5 $142 {[%cal Od4g1] ( -> ...Qg1!)} 44. Ba8 e5) 44. Nd1 {[%emt 0:00:28]} (44. Nd3 $142 Nc3 (44... Qxc4 $2 {too greedy.} 45. Nxc5 Qxc5 46. Qxa2 $18) 45. Qe1 Qxc4 (45... Nxa4 $2 46. Bxg6 Nb6 47. Nxc5 $19) 46. Ne5) 44... Nc1 $19 {[%emt 0:00:00] Black is clearly winning.} 45. Qf1 {[%emt 0:00:33]} Nb3 {[%emt 0:00:00]} 46. Qe2 {[%emt 0:00:30]} Nd2+ {[%emt 0:00:00] Weighted Error Value: White=0.57/Black=0.22 (precise) .  Mistake:       	White=4     	Black=1      Inaccurate:     	White=5     	Black=2      OK:         	White=12    	Black=14     Best:        	White=3     	Black=1      Strong:       	---       	Black=1} 0-1